[Event "Late-Titled-Tuesday-Blitz-April-30-2024"]
[Site "Chess.com"]
[Date "2024.04.30"]
[Round "9"]
[White "Revan_2002"]
[Black "Zhigalko_Sergei"]
[Result "1-0"]
[WhiteElo "2782"]
[BlackElo "2870"]
[TimeControl "180+1"]
[EndTime "15:44:53 PDT"]
[Termination "Revan_2002 won by checkmate"]

1. d4 {[%clk 0:03:00.9]} 1... Nf6 {[%clk 0:02:58.6]} 2. c4 {[%clk 0:02:50.1]}
2... e6 {[%clk 0:02:59]} 3. Nf3 {[%clk 0:02:49.3]} 3... b6 {[%clk 0:02:59.1]} 4.
a3 {[%clk 0:02:49.7]} 4... Ba6 {[%clk 0:02:59]} 5. Qc2 {[%clk 0:02:48]} 5... Bb7
{[%clk 0:02:59.5]} 6. Nc3 {[%clk 0:02:47]} 6... c5 {[%clk 0:02:58.9]} 7. dxc5
{[%clk 0:02:38.9]} 7... bxc5 {[%clk 0:02:58.3]} 8. Bf4 {[%clk 0:02:38.1]} 8...
Be7 {[%clk 0:02:56.9]} 9. e3 {[%clk 0:02:37.8]} 9... O-O {[%clk 0:02:55.8]} 10.
Be2 {[%clk 0:02:17.8]} 10... Qb6 {[%clk 0:02:55.8]} 11. O-O {[%clk 0:02:15.4]}
11... Rd8 {[%clk 0:02:53.7]} 12. Rab1 {[%clk 0:01:55.8]} 12... Nc6 {[%clk
0:02:51.7]} 13. Rfd1 {[%clk 0:01:48.8]} 13... h6 {[%clk 0:02:45.8]} 14. h3
{[%clk 0:01:39.1]} 14... Rac8 {[%clk 0:02:36.2]} 15. Bg3 {[%clk 0:01:10]} 15...
d5 {[%clk 0:02:18.8]} 16. Bh4 {[%clk 0:01:06.6]} 16... d4 {[%clk 0:02:16.9]} 17.
Bxf6 {[%clk 0:00:41.2]} 17... Bxf6 {[%clk 0:02:14.7]} 18. Ne4 {[%clk 0:00:41.8]}
18... Be7 {[%clk 0:02:14.1]} 19. exd4 {[%clk 0:00:41]} 19... Nxd4 {[%clk
0:02:03.2]} 20. Nxd4 {[%clk 0:00:40.6]} 20... cxd4 {[%clk 0:02:02.2]} 21. b4
{[%clk 0:00:41.2]} 21... Qc7 {[%clk 0:01:26.2]} 22. c5 {[%clk 0:00:36.4]} 22...
Qf4 {[%clk 0:01:20.3]} 23. Bd3 {[%clk 0:00:31.3]} 23... f5 {[%clk 0:01:08.4]}
24. Ng3 {[%clk 0:00:25.1]} 24... Bh4 {[%clk 0:00:55.3]} 25. Qe2 {[%clk
0:00:20.8]} 25... Bd5 {[%clk 0:00:37.9]} 26. Bc4 {[%clk 0:00:15.2]} 26... d3
{[%clk 0:00:30.9]} 27. Bxd3 {[%clk 0:00:13.3]} 27... Bxg3 {[%clk 0:00:31.2]} 28.
fxg3 {[%clk 0:00:13.9]} 28... Qxg3 {[%clk 0:00:32]} 29. Qf2 {[%clk 0:00:14.5]}
29... Qg5 {[%clk 0:00:28.3]} 30. Bf1 {[%clk 0:00:13.5]} 30... Be4 {[%clk
0:00:15.7]} 31. Rbc1 {[%clk 0:00:13.3]} 31... Rd5 {[%clk 0:00:07.7]} 32. Rxd5
{[%clk 0:00:12.8]} 32... Qxc1 {[%clk 0:00:07.2]} 33. Qd2 {[%clk 0:00:08.3]}
33... Qxa3 {[%clk 0:00:02.7]} 34. Rd7 {[%clk 0:00:06.9]} 34... Qg3 {[%clk
0:00:01.9]} 35. Qf2 {[%clk 0:00:03.8]} 35... Qg5 {[%clk 0:00:01.7]} 36. Qd4
{[%clk 0:00:03.6]} 36... Kh7 {[%clk 0:00:01.6]} 37. h4 {[%clk 0:00:04]} 37...
Qg6 {[%clk 0:00:01.5]} 38. Qf2 {[%clk 0:00:02.9]} 38... Ra8 {[%clk 0:00:01.2]}
39. b5 {[%clk 0:00:03.1]} 39... Rc8 {[%clk 0:00:01.3]} 40. c6 {[%clk 0:00:03.4]}
40... a6 {[%clk 0:00:01.9]} 41. bxa6 {[%clk 0:00:03]} 41... Bxc6 {[%clk
0:00:02.3]} 42. Re7 {[%clk 0:00:02.7]} 42... Bd5 {[%clk 0:00:02.3]} 43. h5
{[%clk 0:00:03]} 43... Qf6 {[%clk 0:00:02.8]} 44. Ra7 {[%clk 0:00:01.8]} 44...
Rc1 {[%clk 0:00:02.9]} 45. Rd7 {[%clk 0:00:01.6]} 45... Bc4 {[%clk 0:00:03.3]}
46. a7 {[%clk 0:00:01.5]} 46... Qa1 {[%clk 0:00:03.4]} 47. a8=Q {[%clk
0:00:01.3]} 47... Rxf1+ {[%clk 0:00:03.9]} 48. Qxf1 {[%clk 0:00:01.4]} 48...
Qxf1+ {[%clk 0:00:03.8]} 49. Kh2 {[%clk 0:00:02.3]} 49... Qf4+ {[%clk
0:00:04.1]} 50. g3 {[%clk 0:00:02.5]} 50... Qf2+ {[%clk 0:00:04.2]} 51. Qg2
{[%clk 0:00:03.1]} 51... Qc5 {[%clk 0:00:02.9]} 52. Qb2 {[%clk 0:00:02.8]} 52...
e5 {[%clk 0:00:02.3]} 53. Re7 {[%clk 0:00:01.4]} 53... e4 {[%clk 0:00:01.8]} 54.
Qxg7# {[%clk 0:00:00.7]} 1-0

[Event "Late-Titled-Tuesday-Blitz-April-30-2024"]
[Site "Chess.com"]
[Date "2024.04.30"]
[Round "9"]
[White "Goryachkina"]
[Black "SCIM"]
[Result "1-0"]
[WhiteElo "2711"]
[BlackElo "2566"]
[TimeControl "180+1"]
[EndTime "15:44:54 PDT"]
[Termination "Goryachkina won on time"]

1. e4 {[%clk 0:02:56.6]} 1... e6 {[%clk 0:02:58.8]} 2. d4 {[%clk 0:02:56]} 2...
d5 {[%clk 0:02:59.7]} 3. Nc3 {[%clk 0:02:56]} 3... Nf6 {[%clk 0:02:58.6]} 4. Bg5
{[%clk 0:02:55.7]} 4... h6 {[%clk 0:02:55.9]} 5. Bxf6 {[%clk 0:02:53.2]} 5...
Qxf6 {[%clk 0:02:56.8]} 6. exd5 {[%clk 0:02:52.1]} 6... Bb4 {[%clk 0:02:56.9]}
7. dxe6 {[%clk 0:02:44.6]} 7... Bxe6 {[%clk 0:02:47.4]} 8. Bb5+ {[%clk
0:02:27.4]} 8... c6 {[%clk 0:02:43.5]} 9. Be2 {[%clk 0:02:25.3]} 9... O-O {[%clk
0:02:35.5]} 10. Nf3 {[%clk 0:02:24.9]} 10... Nd7 {[%clk 0:02:07.4]} 11. O-O
{[%clk 0:02:24.4]} 11... Rad8 {[%clk 0:02:07.6]} 12. Ne4 {[%clk 0:02:21.5]}
12... Qe7 {[%clk 0:02:05.8]} 13. Ng3 {[%clk 0:02:20.9]} 13... Nf6 {[%clk
0:01:57.9]} 14. c3 {[%clk 0:02:16.8]} 14... Bd6 {[%clk 0:01:53.9]} 15. Qc2
{[%clk 0:02:16.4]} 15... Rfe8 {[%clk 0:01:44.2]} 16. Rfe1 {[%clk 0:02:04.2]}
16... Qd7 {[%clk 0:01:40.7]} 17. Bf1 {[%clk 0:01:58.1]} 17... g6 {[%clk
0:01:38.7]} 18. b3 {[%clk 0:01:55.4]} 18... h5 {[%clk 0:01:37.5]} 19. h3 {[%clk
0:01:45.9]} 19... Bd5 {[%clk 0:01:28.8]} 20. Qd3 {[%clk 0:01:19.8]} 20... Bxg3
{[%clk 0:00:59.3]} 21. fxg3 {[%clk 0:01:19.4]} 21... Be4 {[%clk 0:00:59.4]} 22.
Qd1 {[%clk 0:01:15.2]} 22... Qc7 {[%clk 0:00:54.7]} 23. Bd3 {[%clk 0:00:41.2]}
23... Qxg3 {[%clk 0:00:50.3]} 24. Bxe4 {[%clk 0:00:37.9]} 24... Nxe4 {[%clk
0:00:47.4]} 25. Qc2 {[%clk 0:00:37.6]} 25... Ng5 {[%clk 0:00:40.3]} 26. Rxe8+
{[%clk 0:00:32.4]} 26... Rxe8 {[%clk 0:00:41.2]} 27. Nxg5 {[%clk 0:00:31.8]}
27... Qxg5 {[%clk 0:00:39.8]} 28. Qf2 {[%clk 0:00:24.1]} 28... Re3 {[%clk
0:00:35.4]} 29. Rf1 {[%clk 0:00:22.9]} 29... Qe7 {[%clk 0:00:30.7]} 30. c4
{[%clk 0:00:21.3]} 30... Re2 {[%clk 0:00:30.4]} 31. Qf3 {[%clk 0:00:17.8]} 31...
Rxa2 {[%clk 0:00:29.5]} 32. d5 {[%clk 0:00:17.3]} 32... cxd5 {[%clk 0:00:29.7]}
33. cxd5 {[%clk 0:00:16.7]} 33... Rd2 {[%clk 0:00:26.8]} 34. Kh1 {[%clk
0:00:16.6]} 34... b6 {[%clk 0:00:22.3]} 35. Rc1 {[%clk 0:00:09.8]} 35... Qd7
{[%clk 0:00:20.3]} 36. Rd1 {[%clk 0:00:08.5]} 36... Rxd1+ {[%clk 0:00:18.4]} 37.
Qxd1 {[%clk 0:00:09.4]} 37... Qd6 {[%clk 0:00:18.7]} 38. Qd3 {[%clk 0:00:06.9]}
38... a5 {[%clk 0:00:18.5]} 39. Qb5 {[%clk 0:00:06.5]} 39... Kf8 {[%clk
0:00:18.6]} 40. Qc4 {[%clk 0:00:05.4]} 40... Qc5 {[%clk 0:00:17.9]} 41. Qe4
{[%clk 0:00:02.9]} 41... Qc1+ {[%clk 0:00:16.6]} 42. Kh2 {[%clk 0:00:03]} 42...
Qc7+ {[%clk 0:00:17]} 43. Kh1 {[%clk 0:00:03.4]} 43... Qd6 {[%clk 0:00:16.8]}
44. Qd4 {[%clk 0:00:00.9]} 44... b5 {[%clk 0:00:14.4]} 45. Qe4 {[%clk
0:00:00.5]} 45... Qc5 {[%clk 0:00:09.9]} 46. Qe5 {[%clk 0:00:01]} 46... a4
{[%clk 0:00:01.5]} 47. bxa4 {[%clk 0:00:01.9]} 47... bxa4 {[%clk 0:00:01.7]} 48.
Qb8+ {[%clk 0:00:02.3]} 48... Kg7 {[%clk 0:00:00.7]} 49. Qe5+ {[%clk 0:00:02.6]}
1-0

[Event "Late-Titled-Tuesday-Blitz-April-30-2024"]
[Site "Chess.com"]
[Date "2024.04.30"]
[Round "9"]
[White "manmanlai1"]
[Black "Umumba_FM"]
[Result "1-0"]
[WhiteElo "2573"]
[BlackElo "2692"]
[TimeControl "180+1"]
[EndTime "15:44:54 PDT"]
[Termination "manmanlai1 won by resignation"]

1. e4 {[%clk 0:03:00.9]} 1... Nc6 {[%clk 0:02:55.8]} 2. Nf3 {[%clk 0:03:00.3]}
2... f5 {[%clk 0:02:56.2]} 3. d3 {[%clk 0:02:51.3]} 3... e5 {[%clk 0:02:55.8]}
4. d4 {[%clk 0:02:42.1]} 4... fxe4 {[%clk 0:02:40.8]} 5. Nxe5 {[%clk 0:02:42.5]}
5... Nxe5 {[%clk 0:02:40.5]} 6. dxe5 {[%clk 0:02:41.7]} 6... d5 {[%clk
0:02:36.2]} 7. exd6 {[%clk 0:02:30.7]} 7... Bxd6 {[%clk 0:02:35.9]} 8. Nc3
{[%clk 0:02:14.8]} 8... Nf6 {[%clk 0:02:35.7]} 9. Bc4 {[%clk 0:02:14.5]} 9...
Bg4 {[%clk 0:02:31.6]} 10. Qd2 {[%clk 0:02:13.5]} 10... Qe7 {[%clk 0:02:26.9]}
11. h3 {[%clk 0:02:07.5]} 11... Bf5 {[%clk 0:02:09.3]} 12. Nd5 {[%clk
0:01:44.8]} 12... Nxd5 {[%clk 0:02:08.6]} 13. Qxd5 {[%clk 0:01:45.7]} 13... e3
{[%clk 0:01:12.7]} 14. Qxf5 {[%clk 0:01:04.8]} 14... exf2+ {[%clk 0:01:12.8]}
15. Kd1 {[%clk 0:01:05.3]} 15... Rf8 {[%clk 0:01:11.2]} 16. Qh5+ {[%clk
0:00:59.8]} 16... g6 {[%clk 0:01:09.9]} 17. Qe2 {[%clk 0:00:59.8]} 17... Be5
{[%clk 0:00:44.3]} 18. Bd3 {[%clk 0:00:45.2]} 18... O-O-O {[%clk 0:00:41.8]} 19.
Rf1 {[%clk 0:00:40]} 19... Qf6 {[%clk 0:00:38.8]} 20. Be3 {[%clk 0:00:26]} 20...
Bg3 {[%clk 0:00:32]} 21. Qg4+ {[%clk 0:00:19.8]} 21... Kb8 {[%clk 0:00:30.2]}
22. Qxg3 {[%clk 0:00:19.7]} 22... Qxb2 {[%clk 0:00:30.6]} 23. Kd2 {[%clk
0:00:16.6]} 23... Rxd3+ {[%clk 0:00:26]} 24. Kxd3 {[%clk 0:00:15.7]} 24... Rd8+
{[%clk 0:00:26.6]} 25. Ke2 {[%clk 0:00:12.7]} 25... Qxc2+ {[%clk 0:00:26.5]} 26.
Kf3 {[%clk 0:00:13.1]} 26... Rf8+ {[%clk 0:00:24.4]} 27. Qf4 {[%clk 0:00:10.9]}
27... Rxf4+ {[%clk 0:00:23.7]} 28. Bxf4 {[%clk 0:00:11.8]} 28... h6 {[%clk
0:00:18.3]} 29. Be3 {[%clk 0:00:12.7]} 29... b6 {[%clk 0:00:16.3]} 30. Bxf2
{[%clk 0:00:13.6]} 30... g5 {[%clk 0:00:16.5]} 31. Kg3 {[%clk 0:00:14.1]} 31...
h5 {[%clk 0:00:14.7]} 32. Kh2 {[%clk 0:00:14.7]} 32... g4 {[%clk 0:00:15.2]} 33.
Kg1 {[%clk 0:00:15.2]} 33... Kb7 {[%clk 0:00:15.5]} 34. hxg4 {[%clk 0:00:15.2]}
34... hxg4 {[%clk 0:00:16.4]} 35. Rfe1 {[%clk 0:00:14.7]} 35... Qd3 {[%clk
0:00:16.5]} 36. Re3 {[%clk 0:00:14.9]} 36... Qd5 {[%clk 0:00:16.4]} 37. a3
{[%clk 0:00:14.7]} 37... a5 {[%clk 0:00:16.8]} 38. Rg3 {[%clk 0:00:14]} 38...
Qf5 {[%clk 0:00:16.4]} 39. Rd1 {[%clk 0:00:14.2]} 39... a4 {[%clk 0:00:16.7]}
40. Rdd3 {[%clk 0:00:14.2]} 40... b5 {[%clk 0:00:16.9]} 41. Rc3 {[%clk
0:00:14.3]} 41... c6 {[%clk 0:00:16.8]} 42. Bc5 {[%clk 0:00:13.3]} 42... Qb1+
{[%clk 0:00:16.8]} 43. Kf2 {[%clk 0:00:13.7]} 43... Qf5+ {[%clk 0:00:17.4]} 44.
Ke3 {[%clk 0:00:13.9]} 44... Qe5+ {[%clk 0:00:17.1]} 45. Kd2 {[%clk 0:00:14.3]}
45... Qf4+ {[%clk 0:00:16.6]} 46. Ke2 {[%clk 0:00:14]} 46... Qe4+ {[%clk
0:00:16.7]} 47. Kd2 {[%clk 0:00:12.6]} 47... Qf4+ {[%clk 0:00:16.9]} 48. Kc2
{[%clk 0:00:13]} 48... Qe4+ {[%clk 0:00:16.4]} 49. Kb2 {[%clk 0:00:12.7]} 49...
Qe2+ {[%clk 0:00:16.7]} 50. Kb1 {[%clk 0:00:13.3]} 50... Qe4+ {[%clk 0:00:16.4]}
51. Kc1 {[%clk 0:00:13.7]} 51... Qe1+ {[%clk 0:00:16.2]} 52. Kb2 {[%clk
0:00:13.6]} 52... Qe2+ {[%clk 0:00:16.1]} 53. Rc2 {[%clk 0:00:12.7]} 53... Qe5+
{[%clk 0:00:16.1]} 54. Rgc3 {[%clk 0:00:13.4]} 54... g3 {[%clk 0:00:14.5]} 55.
Bb4 {[%clk 0:00:12.4]} 55... Qd4 {[%clk 0:00:14.2]} 56. Be7 {[%clk 0:00:11.8]}
56... Qe5 {[%clk 0:00:13.9]} 57. Bf8 {[%clk 0:00:11]} 57... Qf6 {[%clk
0:00:14.1]} 58. Bc5 {[%clk 0:00:11.1]} 58... Qe5 {[%clk 0:00:14.1]} 59. Rd2
{[%clk 0:00:10.9]} 59... Ka6 {[%clk 0:00:11.1]} 60. Bd6 {[%clk 0:00:11.1]} 60...
Qf6 {[%clk 0:00:10.4]} 61. Bxg3 {[%clk 0:00:10.4]} 61... c5 {[%clk 0:00:09.5]}
62. Rd6+ {[%clk 0:00:08.5]} 62... Qxd6 {[%clk 0:00:09.5]} 63. Bxd6 {[%clk
0:00:09.3]} 63... b4 {[%clk 0:00:10.4]} 64. axb4 {[%clk 0:00:09.3]} 64... cxb4
{[%clk 0:00:11.3]} 65. Bxb4 {[%clk 0:00:09.6]} 1-0

[Event "Late-Titled-Tuesday-Blitz-April-30-2024"]
[Site "Chess.com"]
[Date "2024.04.30"]
[Round "9"]
[White "artin10862"]
[Black "Meri-Arabidze"]
[Result "1-0"]
[WhiteElo "2865"]
[BlackElo "2698"]
[TimeControl "180+1"]
[EndTime "15:45:01 PDT"]
[Termination "artin10862 won by checkmate"]

1. e3 {[%clk 0:03:00.9]} 1... d5 {[%clk 0:02:59]} 2. Nf3 {[%clk 0:03:00.9]} 2...
Nf6 {[%clk 0:02:58.9]} 3. c4 {[%clk 0:02:55.6]} 3... e6 {[%clk 0:02:57.8]} 4. d4
{[%clk 0:02:56.1]} 4... a6 {[%clk 0:02:55.9]} 5. b3 {[%clk 0:02:53.5]} 5... b6
{[%clk 0:02:46.2]} 6. Bb2 {[%clk 0:02:50.1]} 6... Bb7 {[%clk 0:02:46.4]} 7. Nc3
{[%clk 0:02:48.7]} 7... Bd6 {[%clk 0:02:46.4]} 8. Rc1 {[%clk 0:02:46.2]} 8...
Nbd7 {[%clk 0:02:46]} 9. Bd3 {[%clk 0:02:42]} 9... O-O {[%clk 0:02:45.6]} 10.
cxd5 {[%clk 0:02:41.9]} 10... exd5 {[%clk 0:02:45.3]} 11. O-O {[%clk 0:02:42.6]}
11... Qe7 {[%clk 0:02:45.1]} 12. Ne2 {[%clk 0:02:42.5]} 12... Ne4 {[%clk
0:02:41.7]} 13. Ng3 {[%clk 0:02:36.9]} 13... f5 {[%clk 0:02:41.4]} 14. Ne2
{[%clk 0:02:36.4]} 14... Rf7 {[%clk 0:02:32.1]} 15. Bb1 {[%clk 0:02:34.8]} 15...
g5 {[%clk 0:02:30.4]} 16. Ne1 {[%clk 0:02:34]} 16... Raf8 {[%clk 0:02:21.6]} 17.
Nd3 {[%clk 0:02:33.5]} 17... Qe6 {[%clk 0:02:12.7]} 18. f4 {[%clk 0:02:31.1]}
18... Rg7 {[%clk 0:01:59]} 19. Ne5 {[%clk 0:02:28.1]} 19... Ndf6 {[%clk
0:01:51.9]} 20. Bd3 {[%clk 0:02:17.7]} 20... Ng4 {[%clk 0:01:47.5]} 21. Rf3
{[%clk 0:02:17.4]} 21... Qh6 {[%clk 0:01:28.1]} 22. Rh3 {[%clk 0:02:11.1]} 22...
Qf6 {[%clk 0:01:18.5]} 23. Rf3 {[%clk 0:02:00.6]} 23... Qh6 {[%clk 0:01:18.4]}
24. h3 {[%clk 0:02:00.2]} 24... Ngf6 {[%clk 0:01:00.4]} 25. fxg5 {[%clk
0:01:59.1]} 25... Qxg5 {[%clk 0:00:59]} 26. Nf4 {[%clk 0:01:59.5]} 26... Nh5
{[%clk 0:00:53.8]} 27. Rc2 {[%clk 0:01:55.6]} 27... Nxf4 {[%clk 0:00:53.5]} 28.
exf4 {[%clk 0:01:52.4]} 28... Qe7 {[%clk 0:00:44.8]} 29. Kh2 {[%clk 0:01:46.7]}
29... h6 {[%clk 0:00:41.8]} 30. g3 {[%clk 0:01:46.3]} 30... Kh7 {[%clk
0:00:41.9]} 31. Rg2 {[%clk 0:01:45.6]} 31... Rfg8 {[%clk 0:00:42]} 32. Qc2
{[%clk 0:01:42.9]} 32... Qf6 {[%clk 0:00:36.5]} 33. Bc3 {[%clk 0:01:35]} 33...
Bc8 {[%clk 0:00:31.5]} 34. Be1 {[%clk 0:01:34.1]} 34... Be6 {[%clk 0:00:31.3]}
35. Bxa6 {[%clk 0:01:33]} 35... h5 {[%clk 0:00:29.2]} 36. h4 {[%clk 0:01:28]}
36... c5 {[%clk 0:00:19]} 37. Rf1 {[%clk 0:01:20.4]} 37... cxd4 {[%clk
0:00:18.9]} 38. Nf3 {[%clk 0:01:19.8]} 38... Bxf4 {[%clk 0:00:14.7]} 39. gxf4
{[%clk 0:01:07.4]} 39... Rxg2+ {[%clk 0:00:14.2]} 40. Qxg2 {[%clk 0:01:08.3]}
40... Rxg2+ {[%clk 0:00:13.9]} 41. Kxg2 {[%clk 0:01:09.2]} 41... Nc5 {[%clk
0:00:10.3]} 42. Bb5 {[%clk 0:01:03.9]} 42... d3 {[%clk 0:00:09.9]} 43. b4 {[%clk
0:00:56.7]} 43... Ne4 {[%clk 0:00:09.7]} 44. Bxd3 {[%clk 0:00:56.7]} 44... d4
{[%clk 0:00:10.1]} 45. Bf2 {[%clk 0:00:52]} 45... Bd5 {[%clk 0:00:09.2]} 46. Kh2
{[%clk 0:00:47]} 46... Qd6 {[%clk 0:00:05.6]} 47. Ne5 {[%clk 0:00:28.6]} 47...
Qxb4 {[%clk 0:00:05.6]} 48. Be1 {[%clk 0:00:21]} 48... Qb2+ {[%clk 0:00:05.4]}
49. Kh3 {[%clk 0:00:21.5]} 49... Qa3 {[%clk 0:00:05]} 50. Rf3 {[%clk 0:00:20.2]}
50... Ng5+ {[%clk 0:00:04.7]} 51. hxg5 {[%clk 0:00:19.4]} 51... Bxf3 {[%clk
0:00:05.2]} 52. Bxf5+ {[%clk 0:00:20.1]} 52... Kg7 {[%clk 0:00:05.4]} 53. Kh4
{[%clk 0:00:19.5]} 53... Bd5 {[%clk 0:00:05.4]} 54. Bg3 {[%clk 0:00:18.6]} 54...
Qe3 {[%clk 0:00:05.3]} 55. Bh3 {[%clk 0:00:17.7]} 55... Qg1 {[%clk 0:00:05.2]}
56. f5 {[%clk 0:00:17.6]} 56... d3 {[%clk 0:00:04.4]} 57. f6+ {[%clk 0:00:17.8]}
57... Kf8 {[%clk 0:00:04.5]} 58. g6 {[%clk 0:00:17.2]} 58... d2 {[%clk
0:00:04.6]} 59. f7 {[%clk 0:00:16.3]} 59... d1=Q {[%clk 0:00:04.1]} 60. Nd7+
{[%clk 0:00:16.3]} 60... Kg7 {[%clk 0:00:02.5]} 61. f8=Q+ {[%clk 0:00:16.2]}
61... Kxg6 {[%clk 0:00:03.1]} 62. Bf5# {[%clk 0:00:15.3]} 1-0

[Event "Late-Titled-Tuesday-Blitz-April-30-2024"]
[Site "Chess.com"]
[Date "2024.04.30"]
[Round "9"]
[White "WilsonPalencia21"]
[Black "GolfBeforeChess"]
[Result "1-0"]
[WhiteElo "2525"]
[BlackElo "2342"]
[TimeControl "180+1"]
[EndTime "15:45:02 PDT"]
[Termination "WilsonPalencia21 won on time"]

1. d4 {[%clk 0:03:00.9]} 1... Nf6 {[%clk 0:02:59.5]} 2. c4 {[%clk 0:03:01.2]}
2... e6 {[%clk 0:02:59.6]} 3. Nf3 {[%clk 0:03:01.6]} 3... c5 {[%clk 0:03:00.2]}
4. d5 {[%clk 0:03:01.5]} 4... exd5 {[%clk 0:03:00.6]} 5. cxd5 {[%clk 0:03:02.4]}
5... d6 {[%clk 0:03:01.2]} 6. g3 {[%clk 0:03:02.2]} 6... g6 {[%clk 0:03:01.5]}
7. Bg2 {[%clk 0:03:03.1]} 7... Bg7 {[%clk 0:03:02]} 8. O-O {[%clk 0:03:04]} 8...
O-O {[%clk 0:03:02.1]} 9. Nc3 {[%clk 0:03:04.5]} 9... Nbd7 {[%clk 0:03:00.3]}
10. a4 {[%clk 0:03:02.7]} 10... a6 {[%clk 0:02:59.8]} 11. Nd2 {[%clk 0:03:01.8]}
11... Rb8 {[%clk 0:02:59.1]} 12. Nc4 {[%clk 0:03:00.3]} 12... Nb6 {[%clk
0:02:59]} 13. Na3 {[%clk 0:02:59.7]} 13... Bd7 {[%clk 0:02:59.2]} 14. e4 {[%clk
0:02:58.1]} 14... Nc8 {[%clk 0:02:57.4]} 15. Nc4 {[%clk 0:02:45.4]} 15... b5
{[%clk 0:02:56.4]} 16. axb5 {[%clk 0:02:44.3]} 16... axb5 {[%clk 0:02:56.8]} 17.
Na5 {[%clk 0:02:41.3]} 17... Qb6 {[%clk 0:02:38.8]} 18. Nc6 {[%clk 0:02:22.8]}
18... Rb7 {[%clk 0:02:19]} 19. b4 {[%clk 0:01:45.7]} 19... Re8 {[%clk 0:02:07]}
20. Rb1 {[%clk 0:01:39.2]} 20... Na7 {[%clk 0:01:55.4]} 21. bxc5 {[%clk
0:01:28.4]} 21... Qxc5 {[%clk 0:01:52.7]} 22. Nxa7 {[%clk 0:00:50.5]} 22... Qxa7
{[%clk 0:01:52]} 23. Be3 {[%clk 0:00:49.1]} 23... Qa3 {[%clk 0:01:49.4]} 24. Rb3
{[%clk 0:00:45.4]} 24... Qa5 {[%clk 0:01:49.6]} 25. Bd4 {[%clk 0:00:41.4]} 25...
b4 {[%clk 0:01:47.5]} 26. Ne2 {[%clk 0:00:39.3]} 26... Nxe4 {[%clk 0:01:25.3]}
27. Bxg7 {[%clk 0:00:37.9]} 27... Kxg7 {[%clk 0:01:25]} 28. Qd4+ {[%clk
0:00:38.1]} 28... Nf6 {[%clk 0:01:25.3]} 29. Rf3 {[%clk 0:00:37.8]} 29... Qd8
{[%clk 0:01:23.2]} 30. Nf4 {[%clk 0:00:29.1]} 30... b3 {[%clk 0:01:08.2]} 31.
Rb1 {[%clk 0:00:27]} 31... b2 {[%clk 0:01:06.7]} 32. Rxb2 {[%clk 0:00:18.7]}
32... Re1+ {[%clk 0:01:00.9]} 33. Bf1 {[%clk 0:00:19]} 33... Bb5 {[%clk
0:00:49.8]} 34. Nd3 {[%clk 0:00:16]} 34... Bxd3 {[%clk 0:00:35.8]} 35. Rxd3
{[%clk 0:00:15.8]} 35... Rxb2 {[%clk 0:00:32.5]} 36. Qxb2 {[%clk 0:00:16.7]}
36... Kg8 {[%clk 0:00:26]} 37. Rb3 {[%clk 0:00:16.4]} 37... Nd7 {[%clk
0:00:24.6]} 38. Kg2 {[%clk 0:00:15.7]} 38... Qf6 {[%clk 0:00:22]} 39. Qxf6
{[%clk 0:00:11.8]} 39... Nxf6 {[%clk 0:00:22.2]} 40. Bc4 {[%clk 0:00:10.6]}
40... Rd1 {[%clk 0:00:20.8]} 41. Rb6 {[%clk 0:00:09.1]} 41... Nxd5 {[%clk
0:00:20]} 42. Rb8+ {[%clk 0:00:04.7]} 42... Kg7 {[%clk 0:00:19.8]} 43. Be2
{[%clk 0:00:05.6]} 43... Rd2 {[%clk 0:00:19.4]} 44. Kf1 {[%clk 0:00:05.4]} 44...
Nc3 {[%clk 0:00:18.9]} 45. Bf3 {[%clk 0:00:06]} 45... d5 {[%clk 0:00:18.7]} 46.
Rc8 {[%clk 0:00:05.7]} 46... d4 {[%clk 0:00:18.2]} 47. h4 {[%clk 0:00:06.2]}
47... Nd1 {[%clk 0:00:17.1]} 48. Ke1 {[%clk 0:00:05.3]} 48... Rxf2 {[%clk
0:00:13.7]} 49. Bxd1 {[%clk 0:00:05.4]} 49... Rg2 {[%clk 0:00:12.5]} 50. g4
{[%clk 0:00:05.9]} 50... Rh2 {[%clk 0:00:11.6]} 51. h5 {[%clk 0:00:06.4]} 51...
gxh5 {[%clk 0:00:11.9]} 52. gxh5 {[%clk 0:00:07.3]} 52... d3 {[%clk 0:00:10.9]}
53. Rc5 {[%clk 0:00:07.2]} 53... d2+ {[%clk 0:00:10.5]} 54. Kf1 {[%clk
0:00:07.7]} 54... Kh6 {[%clk 0:00:09.1]} 55. Rc6+ {[%clk 0:00:07.7]} 55... Kg5
{[%clk 0:00:08.3]} 56. Rc4 {[%clk 0:00:08.4]} 56... Rh4 {[%clk 0:00:07.7]} 57.
Rc5+ {[%clk 0:00:07.7]} 57... Kh6 {[%clk 0:00:07.2]} 58. Kf2 {[%clk 0:00:07.7]}
58... Rh2+ {[%clk 0:00:07.1]} 59. Ke3 {[%clk 0:00:08.3]} 59... f6 {[%clk
0:00:05]} 60. Rd5 {[%clk 0:00:07.7]} 60... Kg7 {[%clk 0:00:02.9]} 61. Be2 {[%clk
0:00:06.2]} 1-0